bitfinex-derivatives/quotes_ETHF0:USTF0_20250417
["timestamp","ask_amount","ask_price","bid_price","bid_amount"]
[1744903854479,1.26524,1581.0,1580.9,4.47308]
[1744903855177,1.26523,1581.1,1581.0,1.26524]
[1744903855379,2.4075,1581.2,1580.9,4.47307]
[1744903855685,1.26523,1581.1,1580.9,4.47307]
[1744903855978,1.26524,1581.0,1580.9,1.26527]
[1744903856182,1.26532,1580.9,1580.7,6.0623]
[1744903856382,3.16295,1581.1,1580.8,1.26538]
[1744903856575,11.94098,1581.2,1580.9,1.26532]
[1744903856776,1.26531,1581.0,1580.9,1.26532]
[1744903857977,1.26531,1581.0,1580.7,6.08701]
[1744903858184,2.56587,1580.9,1580.8,1.26535]
[1744903859285,1.3005,1580.9,1580.8,1.26535]
[1744903859886,4.839,1581.1,1580.8,6.37131]
[1744903859887,1.2652,1581.1,1580.8,6.37131]
[1744903860083,1.2652,1581.1,1581.0,1.26524]
[1744903860387,3.71655,1581.2,1581.1,1.26516]
[1744903861483,2.4514,1581.2,1581.1,1.26516]
[1744903861791,4.47268,1581.5,1581.4,1.26487]
[1744903862179,2.5259,1581.7,1581.6,1.26476]
[1744903862486,5.98073972,1581.8,1581.5,1.26479]
[1744903862688,1.26484,1581.5,1581.4,6.10386]
[1744903863193,1.2648,1581.6,1581.5,1.26481]
[1744903863487,8.50663972,1581.8,1581.6,1.26474]
[1744903863488,1.26473,1581.7,1581.6,1.26474]
[1744903863688,1.2908,1581.8,1581.7,1.26468]
[1744903863887,1.26458,1581.9,1581.7,1.26468]
[1744903864087,4.47238,1581.9,1581.6,1.2385]
[1744903864289,1.26448,1582.0,1581.8,1.26456]
[1744903864486,1.26452,1581.9,1581.8,1.26456]
[1744903864786,8.40740934,1582.2,1582.1,1.26437]
[1744903864985,10.04650934,1582.2,1582.1,1.26437]
[1744903865186,1.26437,1582.1,1582.0,6.1353]
[1744903865387,1.7033,1582.1,1582.0,9.03595]
[1744903865588,8.40740934,1582.2,1582.1,1.26437]
[1744903866883,8.40740934,1582.2,1582.1,4.98692081]
[1744903868593,2.9407,1582.4,1582.2,1.26422]
[1744903868791,2.9407,1582.4,1582.2,2.88412]
[1744903868987,4.20484,1582.4,1582.2,1.6199]
[1744903869191,4.20484,1582.4,1582.2,1.26423]
[1744903870093,2.9407,1582.4,1582.3,1.26421]
[1744903870289,4.20483,1582.4,1582.2,1.26422]
[1744903870591,2.9407,1582.4,1582.3,1.26421]
[1744903870792,4.20487,1582.4,1582.2,2.88414]
[1744903871095,4.20487,1582.4,1582.2,1.6199]
[1744903871391,4.20487,1582.4,1582.2,2.88412]
[1744903871591,4.20487,1582.4,1582.3,1.26421]
[1744903871890,2.9407,1582.4,1582.3,1.26421]
[1744903873093,4.20483,1582.4,1582.3,1.26421]
[1744903873894,2.9407,1582.4,1582.3,1.26421]
[1744903874995,4.836,1583.2,1582.8,1.2638]
[1744903875194,2.96235,1582.9,1582.7,1.26384]
[1744903875396,1.6986,1582.8,1582.7,2.99564]
[1744903875895,2.96241,1582.8,1582.6,9.3077]
[1744903876090,1.26401,1582.6,1582.4,7.31387]
[1744903876281,1.26401,1582.6,1582.4,1.26407]
[1744903876486,2.96268,1582.5,1582.3,1.26415]
[1744903876681,1.6986,1582.4,1582.3,1.26415]
[1744903876894,1.6986,1582.4,1582.3,2.99595]
[1744903877193,2.50775,1582.7,1582.6,1.26397]
[1744903877393,5.71549,1582.7,1582.6,1.26397]
[1744903878098,5.71549,1582.7,1582.5,1.26398]
[1744903878301,5.71549,1582.7,1582.6,1.26397]
[1744903878596,1.26411,1582.5,1582.2,11.20345]
[1744903878795,1.26411,1582.5,1582.3,1.26421]
[1744903878796,1.6029,1582.4,1582.3,1.26421]
[1744903879002,1.26401,1582.6,1582.5,1.26405]
[1744903879196,1.26406,1582.5,1582.4,1.26407]
[1744903879389,2.86693,1582.6,1582.4,1.26407]
[1744903879699,2.86693,1582.6,1582.5,1.26405]
[1744903879896,1.26403,1582.6,1582.5,1.26405]
[1744903880092,1.26407,1582.5,1582.4,1.26406]
[1744903880299,1.26415,1582.4,1582.3,1.26414]
[1744903880498,1.26421,1582.3,1582.0,95.29686]
[1744903880699,2.46801,1582.3,1582.2,1.26429]
[1744903881498,1.26452,1582.0,1581.9,1.26451]
[1744903882599,1.26443,1582.1,1582.0,1.26445]
[1744903882809,1.26435,1582.2,1582.1,1.26433]
[1744903883009,13.28280972,1582.3,1582.2,1.26429]
[1744903883294,8.44878972,1582.3,1582.2,1.26429]
[1744903884706,11.65658972,1582.3,1582.2,1.26429]
[1744903884900,1.26429,1582.2,1582.1,2.94212]
[1744903885209,1.26429,1582.2,1582.1,1.26432]
[1744903886300,1.26443,1582.1,1582.0,1.26439]
[1744903886697,3.2078,1582.3,1582.2,1.26429]
[1744903886898,1.26414,1582.5,1582.4,1.26409]
[1744903887398,1.26413,1582.4,1582.3,2.87104]
[1744903887599,1.2641,1582.5,1582.4,1.26407]
[1744903887899,3.76624,1582.6,1582.5,1.26405]
[1744903888202,1.26395,1582.7,1582.6,1.26397]
[1744903888601,4.47167,1582.8,1582.7,1.26389]
[1744903889799,3.2078,1582.8,1582.6,1.6069]
[1744903890000,4.47166,1582.8,1582.7,1.26389]
[1744903890320,2.46829,1582.9,1582.6,4.8147]
[1744903890513,2.46829,1582.9,1582.7,1.26383]
[1744903890701,1.26381,1582.8,1582.7,2.87623]
[1744903890902,2.46829,1582.9,1582.7,2.87623]
[1744903891398,2.46829,1582.9,1582.7,1.6124]
[1744903891399,1.26381,1582.8,1582.7,1.6124]
[1744903891606,1.26387,1582.8,1582.6,4.47174]
[1744903892002,1.26387,1582.8,1582.6,6.08414]
[1744903892202,1.2045,1582.9,1582.6,4.8202]
[1744903892401,1.26382,1582.8,1582.6,4.47172]
[1744903892607,2.46829,1582.9,1582.7,1.26385]
[1744903893306,1.2045,1582.9,1582.8,1.26381]
[1744903894009,1.26381,1582.8,1582.7,2.99012]
[1744903894206,1.26381,1582.8,1582.7,1.26389]
[1744903894411,2.46829,1582.9,1582.7,1.26389]
[1744903894704,2.89501,1582.8,1582.6,4.9341]
[1744903894911,1.26381,1582.8,1582.7,1.26389]
[1744903895110,2.46829,1582.9,1582.7,1.26389]
[1744903895708,1.26381,1582.8,1582.7,1.26389]
[1744903896004,1.26389,1582.7,1582.6,3.2078]
[1744903896210,3.15983,1582.7,1582.3,3.16052]
[1744903896411,1.26413,1582.4,1582.3,1.26414]
[1744903898719,1.26421,1582.3,1582.2,6.09123]
[1744903899014,3.2078,1582.3,1581.9,4.8236]
[1744903899206,1.26447,1582.0,1581.9,1.26446]
[1744903899604,1.26452,1581.9,1581.8,8.36097413]
[1744903899811,4.827,1582.0,1581.9,1.26452]
[1744903900019,1.26452,1581.9,1581.8,9.62551413]
[1744903900209,4.47232,1581.9,1581.8,9.62551413]
[1744903900409,4.47232,1581.9,1581.8,8.36097413]
[1744903900711,3.2078,1581.9,1581.8,1.2646]
[1744903900906,1.26462,1581.8,1581.7,1.26464]
[1744903901111,1.26456,1581.9,1581.8,1.2646]
[1744903901307,1.26461,1581.8,1581.7,1.26462]
[1744903901512,4.47241,1581.8,1581.7,1.26462]
[1744903901710,1.26472,1581.7,1581.6,1.26472]
[1744903901913,4.47242,1581.8,1581.7,1.26468]
[1744903902117,1.26462,1581.8,1581.6,1.26471]
[1744903902326,1.26468,1581.7,1581.6,1.26471]
[1744903903115,8.0348,1582.0,1581.8,1.2646]
[1744903903509,1.26452,1581.9,1581.8,1.2646]
[1744903903712,1.2646,1581.8,1581.7,3.01737]
[1744903904107,3.2078,1582.0,1581.9,1.26452]
[1744903904311,1.26413,1582.4,1582.3,1.26419]
[1744903904512,1.26427,1582.3,1582.2,1.26427]
[1744903904815,3.2078,1582.3,1582.2,1.26427]
[1744903905012,2.4499,1582.5,1582.4,1.26413]
[1744903905217,1.26413,1582.4,1582.3,2.92396]
[1744903905513,1.26421,1582.3,1582.2,42.06423]
[1744903905716,1.26421,1582.3,1582.2,42.06429]
[1744903905903,1.26421,1582.3,1582.2,40.8]
[1744903906108,1.26437,1582.1,1582.0,9.0638]
[1744903906317,1.26452,1581.9,1581.8,1.26456]
[1744903906508,2.49878,1582.0,1581.9,1.26452]
[1744903906813,1.26452,1581.9,1581.8,43.72436]
[1744903907518,1.26452,1581.9,1581.8,43.72437]
[1744903907819,1.26452,1581.9,1581.8,2.9244]
[1744903908215,1.26452,1581.9,1581.8,43.7244]
[1744903908915,1.26452,1581.9,1581.8,42.4598]
[1744903909215,1.26452,1581.9,1581.8,43.7244]
[1744903909615,9.18853972,1582.3,1581.8,43.7244]
[1744903909616,5.98073972,1582.3,1581.8,47.4598]
[1744903909811,1.26433,1582.2,1582.1,1.26434]
[1744903910012,1.26437,1582.1,1582.0,2.90461]
[1744903910208,3.16079,1582.2,1581.8,40.8]
[1744903910418,1.26452,1581.9,1581.8,42.4402]
[1744903911621,1.26452,1581.9,1581.8,40.8]
[1744903912216,1.2498,1582.0,1581.7,3.2078]
[1744903912217,1.2646,1581.8,1581.7,3.2078]
[1744903912517,1.26476,1581.6,1581.5,9.62578413]
[1744903912714,1.26476,1581.6,1581.5,50.42578413]
[1744903912917,1.26474,1581.7,1581.6,1.26475]
[1744903913315,2.51152,1581.8,1581.7,1.26468]
[1744903913817,2.5115,1581.8,1581.7,1.26468]
[1744903914222,1.2469,1581.8,1581.7,1.26468]
[1744903914416,2.5115,1581.8,1581.7,1.26468]
[1744903914622,2.9568,1581.8,1581.7,1.26468]
[1744903914820,1.7099,1581.8,1581.7,1.26468]
[1744903915121,1.7099,1581.8,1581.7,2.93848]
[1744903915917,4.9177,1581.9,1581.8,1.2646]
[1744903916117,4.9177,1581.9,1581.8,2.9384]
[1744903916317,4.9177,1581.9,1581.8,4.2205]
[1744903916524,2.51135,1582.0,1581.9,1.26452]
[1744903916725,2.9568,1582.0,1581.9,2.93832]
[1744903916920,5.98073972,1582.2,1582.0,1.26445]
[1744903917111,7.75063972,1582.2,1582.0,1.26445]
[1744903917318,1.2982,1582.4,1582.3,1.26421]
[1744903917522,1.2982,1582.4,1582.2,1.26424]
[1744903917523,3.0681,1582.4,1582.2,1.26424]
[1744903917826,1.26427,1582.3,1582.1,2.4657]
[1744903918028,3.03417,1582.3,1582.2,1.26429]
[1744903918218,1.26429,1582.2,1582.0,8.0308]
[1744903918423,1.26437,1582.1,1582.0,8.0308]
[1744903918623,1.26437,1582.1,1582.0,3.2078]
[1744903919130,1.26437,1582.1,1582.0,4.47225]
[1744903919426,1.26437,1582.1,1582.0,3.2078]
[1744903920220,1.26445,1582.0,1581.9,1.26446]
[1744903920822,2.87863,1582.1,1582.0,1.26445]
[1744903921128,1.26427,1582.3,1582.2,1.26429]
[1744903921728,3.82619,1582.4,1582.3,1.26421]
[1744903922029,3.82615,1582.4,1582.3,1.26421]
[1744903922726,1.2982,1582.4,1582.3,1.26421]
[1744903922928,2.9124,1582.4,1582.3,1.26421]
[1744903923128,3.2078,1582.5,1582.4,1.26413]
[1744903923323,7.24472972,1582.6,1582.5,1.26405]
[1744903923723,7.72923972,1582.6,1582.5,1.26405]
[1744903923924,1.7485,1582.6,1582.5,1.26405]
[1744903924224,8.40740934,1582.9,1582.8,1.26381]
[1744903924432,1.7485,1583.0,1582.9,1.26373]
[1744903925018,12.58120934,1583.2,1583.0,1.26362]
[1744903925224,1.26365,1583.0,1582.9,42.0637]
[1744903925419,1.26365,1583.0,1582.9,40.8]
[1744903925623,1.26365,1583.0,1582.9,42.06373]
[1744903925827,3.01213,1583.1,1583.0,1.26365]
[1744903926130,8.40740934,1583.2,1583.1,1.26357]
[1744903926722,10.12340934,1583.2,1583.0,2.49892]
[1744903926920,1.716,1583.1,1583.0,2.49892]
[1744903927328,8.40740934,1583.2,1583.1,1.26357]
[1744903927628,10.12340934,1583.2,1583.1,1.26357]
[1744903928227,8.40740934,1583.2,1583.1,1.26357]
[1744903928623,9.67089934,1583.2,1583.0,5.7067]
[1744903928832,1.716,1583.1,1583.0,2.4989]
[1744903929034,1.716,1583.1,1583.0,5.7067]
[1744903929834,1.716,1583.1,1583.0,2.4989]
[1744903931033,2.97957,1583.1,1583.0,2.4989]
[1744903931234,1.716,1583.1,1583.0,1.2353]
[1744903931434,2.97957,1583.1,1582.9,45.622]
[1744903931625,1.26365,1583.0,1582.9,40.8]
[1744903931823,1.7139,1583.0,1582.9,40.8]
[1744903932633,3.79034,1583.2,1582.9,40.8]
[1744903932833,0.00947598,1583.1,1582.9,40.8]
[1744903933036,0.00947598,1583.1,1583.0,1.26365]
[1744903934528,0.00947598,1583.1,1583.0,1.7437]
[1744903934729,1.26365,1583.0,1582.9,40.8]
[1744903934934,0.00947598,1583.1,1583.0,1.26365]
[1744903935130,0.00947598,1583.1,1583.0,12.07115]
[1744903935435,3.02635,1583.5,1583.3,1.2634]
[1744903935627,1.26339,1583.4,1583.2,1.26347]
[1744903935823,3.02649,1583.4,1583.2,1.26347]
[1744903936027,3.0265,1583.4,1583.3,1.26341]
[1744903936425,1.7631,1583.4,1583.2,1.6306]
[1744903936630,3.02651,1583.3,1583.2,1.26349]
[1744903936832,1.7631,1583.3,1583.2,1.26349]
[1744903937139,1.7631,1583.3,1583.2,6.10189]
[1744903937939,1.7631,1583.3,1583.2,2.89409]
[1744903938141,1.26349,1583.2,1583.1,4.821]
[1744903938340,1.26349,1583.2,1583.1,6.08457]
[1744903938740,5.51466,1583.3,1583.2,1.26349]
[1744903938942,0.00947598,1583.5,1583.1,1.7707]
[1744903939133,1.26345,1583.3,1583.2,1.26347]
[1744903939640,2.88494,1583.3,1583.2,1.26349]
[1744903940337,1.6215,1583.3,1583.2,1.26349]
[1744903940537,2.88491,1583.3,1583.2,1.26349]
[1744903940739,1.6215,1583.3,1583.2,1.26349]
[1744903941137,2.88491,1583.3,1583.2,1.26349]
[1744903941446,1.6215,1583.3,1583.2,1.26349]
[1744903941741,2.88491,1583.3,1583.2,1.26349]
[1744903941940,1.6215,1583.3,1583.0,9.25882794]
[1744903942138,2.96423,1583.2,1583.1,1.26357]
[1744903942533,1.26357,1583.1,1583.0,12.23031794]
[1744903942739,2.96427,1583.1,1583.0,12.23031794]
[1744903942947,1.7007,1583.1,1583.0,12.23031794]
[1744903944343,1.2611,1583.4,1583.3,1.26341]
[1744903944642,5.9902157,1583.5,1583.4,1.26333]
[1744903944834,1.27272598,1583.5,1583.4,5.70883]
[1744903945037,0.00947598,1583.5,1583.4,7.31113]
[1744903945345,1.27272598,1583.5,1583.4,7.31113]
[1744903945545,1.27272598,1583.5,1583.4,3.2078]
[1744903945746,1.27272598,1583.5,1583.4,4.47113]
[1744903945943,3.00652598,1583.5,1583.4,4.47113]
[1744903946143,3.00652598,1583.5,1583.4,3.2078]
[1744903946342,3.00652598,1583.5,1583.0,7.08702794]
[1744903946343,3.15833,1583.4,1583.0,7.08702794]
[1744903946644,1.26355,1583.2,1583.1,1.26353]
[1744903947046,1.26355,1583.2,1583.1,4.47133]
[1744903947244,1.26349,1583.2,1583.1,4.47132]
[1744903947547,2.99725,1583.3,1583.2,1.26349]
[1744903947749,1.26349,1583.2,1583.1,6.09363]
[1744903947946,2.99259,1583.2,1583.1,4.8301]
[1744903948145,2.99259,1583.2,1583.1,3.2078]
[1744903948448,1.26357,1583.1,1583.0,0.00792794]
[1744903948649,4.16577,1583.1,1583.0,0.00792794]
[1744903948947,9.16577,1583.1,1583.0,0.00792794]
[1744903949455,4.16577,1583.1,1583.0,0.00792794]
[1744903951244,1.7291,1583.1,1583.0,1.27157794]
[1744903951445,2.99267,1583.1,1583.0,1.27157794]
[1744903952748,2.99267,1583.1,1583.0,2.98257794]
[1744903953359,2.99267,1583.1,1583.0,1.71892794]
[1744903953552,2.99267,1583.1,1583.0,2.98257794]
[1744903953852,2.99267,1583.1,1583.0,0.00792794]
[1744903954256,2.99267,1583.1,1583.0,1.27157794]
[1744903955254,2.99267,1583.1,1583.0,0.00792794]
[1744903955455,2.99267,1583.1,1583.0,1.27157794]
[1744903956153,2.99267,1583.1,1583.0,3.03817794]
[1744903957258,2.99267,1583.1,1583.0,1.77452794]
[1744903957448,2.99267,1583.1,1583.0,0.00792794]
[1744903957648,4.16347,1583.1,1583.0,0.00792794]
[1744903958459,4.16347,1583.1,1583.0,1.27157794]
[1744903958956,4.16347,1583.1,1583.0,0.00792794]
[1744903959254,4.16347,1583.1,1583.0,1.27157794]
[1744903959461,4.16347,1583.1,1583.0,2.90077794]
[1744903961058,4.16347,1583.1,1583.0,1.27157794]
[1744903961261,4.16347,1583.1,1583.0,0.00792794]
[1744903961661,12.37127,1583.1,1583.0,0.00792794]
[1744903962458,7.37127,1583.1,1583.0,0.00792794]
[1744903963260,4.16347,1583.1,1583.0,0.00792794]
[1744903964258,4.16347,1583.1,1583.0,1.27157794]
[1744903964660,2.99267,1583.1,1583.0,2.89837794]
[1744903965152,5.98073972,1583.2,1583.0,2.89837794]
[1744903965358,5.98073972,1583.2,1583.1,2.89037]
[1744903965553,1.628,1583.3,1583.2,1.26349]
[1744903965755,1.628,1583.3,1583.2,2.93549]
[1744903966061,2.53777,1583.4,1583.3,1.26341]
[1744903966268,4.20497,1583.4,1583.3,1.26341]
[1744903966559,1.27274598,1583.5,1583.4,1.26333]
[1744903966764,1.27274598,1583.5,1583.4,2.93533]
[1744903967559,1.27274598,1583.5,1583.4,1.672]
[1744903967764,2.93994598,1583.5,1583.4,1.672]
[1744903968054,2.93994598,1583.5,1583.4,2.93533]
[1744903968258,2.93994598,1583.5,1583.4,1.672]
[1744903969058,2.93994598,1583.5,1583.4,2.93533]
[1744903969257,1.26333,1583.4,1583.3,4.4712]
[1744903969459,2.91613,1583.4,1583.3,4.4712]
[1744903969664,2.91613,1583.4,1583.3,3.2078]
[1744903969855,2.7101,1583.4,1583.3,1.26341]
[1744903970056,3.97348,1583.4,1583.3,1.26341]
[1744903970258,2.7101,1583.4,1583.3,1.26341]
[1744903971460,3.97343,1583.4,1583.3,1.26341]
[1744903971669,3.97343,1583.4,1583.3,4.47121]
[1744903971860,3.97343,1583.4,1583.3,1.26341]
[1744903972364,2.7101,1583.4,1583.3,1.26341]
[1744903973869,2.7101,1583.4,1583.3,2.88691]
[1744903974264,2.91613,1583.4,1583.3,2.88691]
[1744903974465,1.6528,1583.4,1583.3,2.88691]
[1744903974664,2.91613,1583.4,1583.3,2.88691]
[1744903975066,1.6528,1583.4,1583.3,2.88691]
[1744903975565,0.00947598,1583.5,1583.4,1.26333]
[1744903975761,0.00947598,1583.5,1583.4,4.10563]
[1744903976666,0.00571339,1583.7,1583.6,1.26317]
[1744903976872,0.00571339,1583.7,1583.6,4.47097]
[1744903977268,0.00571339,1583.7,1583.6,52.04817]
[1744903977564,8.40740934,1583.9,1583.8,1.26301]
[1744903977762,8.40740934,1583.9,1583.8,4.47081]
[1744903977960,2.8356,1584.0,1583.9,1.26293]
[1744903978169,4.10792598,1584.0,1583.9,1.26293]
[1744903978367,4.11576138,1584.0,1583.9,3.02653]
[1744903978563,4.11576138,1584.0,1583.9,1.7636]
[1744903978963,4.11576138,1584.0,1583.9,3.02653]
[1744903979164,1.26293,1583.9,1583.8,6.61028]
[1744903979367,2.98143,1583.9,1583.8,6.61028]
[1744903979670,1.7185,1583.9,1583.8,8.37388]
[1744903980465,2.98143,1583.9,1583.8,8.37388]
[1744903980767,2.98143,1583.9,1583.8,4.47078]
[1744903980964,1.7185,1583.9,1583.8,4.47078]
[1744903981165,2.98143,1583.9,1583.8,4.47078]
[1744903981368,1.7185,1583.9,1583.8,4.47078]
[1744903981668,2.98143,1583.9,1583.8,4.47078]
[1744903981869,2.98143,1583.9,1583.8,4.47081]
[1744903982464,1.26301,1583.8,1583.7,6.08153598]
[1744903982666,4.01641,1583.8,1583.7,1.27253598]
[1744903982867,2.7534,1583.8,1583.7,1.27253598]
[1744903983176,4.01641,1583.8,1583.7,1.27253598]
[1744903983363,2.7534,1583.8,1583.7,1.27253598]
[1744903983867,4.01641,1583.8,1583.7,1.27253598]
[1744903984071,2.7534,1583.8,1583.7,1.27253598]
[1744903985172,4.01641,1583.8,1583.7,1.27253598]
[1744903985563,1.13081138,1584.0,1583.9,1.26293]
[1744903985764,2.74901138,1584.0,1583.9,1.26293]
[1744903985966,0.01731138,1584.0,1583.9,3.02143]
[1744903986274,1.061,1584.3,1584.0,3.15695]
[1744903986471,1.6182,1584.4,1584.3,1.26261]
[1744903986675,1.6182,1584.4,1584.3,4.47041]
[1744903987180,8.40740934,1584.6,1584.3,8.2078]
[1744903987470,8.41500363,1584.6,1584.5,1.26245]
[1744903987669,1.26245,1584.5,1584.4,7.70458]
[1744903987866,1.6118,1584.5,1584.4,7.70458]
[1744903988071,8.42447961,1584.6,1584.5,1.26245]
[1744903988274,8.42447961,1584.6,1584.5,2.89755]
[1744903988575,8.42447961,1584.6,1584.3,3.2147877]
[1744903988576,13.42447961,1584.6,1584.3,3.2147877]
[1744903988777,1.26253,1584.4,1584.3,0.0069877]
[1744903989167,2.87433,1584.4,1584.3,0.0069877]
[1744903992075,6.08213,1584.4,1584.3,0.0069877]
[1744903994278,11.08213,1584.4,1584.3,0.0069877]
[1744903994488,1.26293,1583.9,1583.8,8.36097413]
[1744903994777,4.47073,1583.9,1583.8,8.36097413]
[1744903994977,6.26293,1583.9,1583.8,8.36097413]
[1744903995177,9.47073,1583.9,1583.8,8.36097413]
[1744903995388,9.47073,1583.9,1583.7,0.00947598]
[1744903995389,1.26301,1583.8,1583.7,0.00947598]
[1744903995581,3.04151,1583.8,1583.7,0.01679122]
[1744903997590,3.04151,1583.8,1583.7,1.27988122]
[1744903997786,8.28504972,1584.0,1583.7,5.01679122]
[1744903997986,1.6071,1584.0,1583.9,1.26293]
[1744903998288,3.2078,1584.1,1584.0,1.26285]
[1744903998789,2.34206,1584.4,1584.3,1.26261]
[1744903999094,3.00822,1584.5,1584.3,1.26257]
[1744903999294,1.26261,1584.3,1584.2,12.05033]
[1744903999889,1.26261,1584.3,1584.2,52.85033]
[1744904000088,1.26261,1584.3,1584.2,40.8]
[1744904000996,1.26293,1583.9,1583.8,5.9807]
[1744904001185,1.26301,1583.8,1583.7,0.01679122]
[1744904001580,9.47081,1583.8,1583.7,0.01679122]
[1744904001787,9.10351,1583.8,1583.3,24.11023533]
[1744904002095,1.26333,1583.4,1583.3,20.90243533]
[1744904002792,3.96691,1583.5,1583.4,1.26333]
[1744904002990,1.27051311,1583.4,1583.3,22.54750583]
[1744904003196,1.66788311,1583.4,1583.3,23.81083583]
[1744904003493,2.93121311,1583.4,1583.3,20.90970583]
[1744904004391,2.93121311,1583.4,1583.3,22.17311583]
[1744904004886,2.93121311,1583.4,1583.3,20.90970583]
[1744904005087,2.93121311,1583.4,1583.3,22.17311583]
[1744904005492,1.66788311,1583.4,1583.3,22.17311583]
[1744904005687,2.93121311,1583.4,1583.3,22.17311583]
[1744904006093,2.93121311,1583.4,1583.3,1.2706805]
[1744904006597,2.93121311,1583.4,1583.3,0.0072705]
[1744904007598,2.93121311,1583.4,1583.3,1.2706805]
[1744904007800,2.93121311,1583.4,1583.3,0.0072705]
[1744904008695,1.66788311,1583.4,1583.3,1.2706805]
[1744904008891,0.00718311,1583.4,1583.3,11.1192805]
[1744904010194,0.00718311,1583.4,1583.3,6.1192805]
[1744904010593,1.27051311,1583.4,1583.3,6.1192805]
[1744904011194,1.27051311,1583.4,1583.3,0.0072705]
[1744904011499,2.99091311,1583.4,1583.3,0.0072705]
[1744904011707,2.99091311,1583.4,1583.3,1.6218705]
[1744904012001,2.99091311,1583.4,1583.3,2.8852805]
[1744904012298,2.99091311,1583.4,1583.3,1.6218705]
[1744904013202,2.99091311,1583.4,1583.3,2.8852805]
[1744904013398,0.00718311,1583.4,1583.3,6.0930805]
[1744904014096,0.00718311,1583.4,1583.3,11.0930805]
[1744904015004,0.00947598,1583.5,1583.3,15.6856705]
[1744904015300,2.95836,1583.9,1583.8,1.26301]
[1744904016098,2.95836,1583.9,1583.8,3.00111]
[1744904016099,0.00577331,1583.9,1583.8,3.00111]
[1744904016900,0.00577331,1583.9,1583.8,6.20891]
[1744904019301,0.00947598,1584.0,1583.9,1.26293]
[1744904019494,0.00947598,1584.0,1583.9,7.82593]
[1744904019895,1.26293,1583.9,1583.8,4.47076]
[1744904020107,3.03709498,1583.9,1583.8,3.2078]
[1744904020297,3.03709498,1583.9,1583.8,4.47081]
[1744904020499,1.77416498,1583.9,1583.8,4.47081]
[1744904020701,3.03709498,1583.9,1583.8,4.47081]
[1744904022105,1.77416498,1583.9,1583.8,4.47081]
[1744904022500,3.03709498,1583.9,1583.8,4.47081]
[1744904023096,4.14089498,1583.9,1583.8,4.47081]
[1744904024608,2.87796498,1583.9,1583.8,4.47081]
[1744904025405,4.14089498,1583.9,1583.8,4.47081]
[1744904026302,9.14089498,1583.9,1583.8,3.2078]
[1744904026509,1.26319,1583.7,1583.6,1.26313]
[1744904026909,2.89749,1583.7,1583.6,1.26313]
[1744904027110,0.00746498,1583.9,1583.8,1.26301]
[1744904027608,0.00746498,1583.9,1583.8,4.06951]
[1744904028011,1.27039498,1583.9,1583.8,4.06951]
[1744904028210,2.90469498,1583.9,1583.8,4.06951]
[1744904028415,1.64176498,1583.9,1583.8,4.06951]
[1744904029014,0.00746498,1583.9,1583.8,7.27731]
[1744904032708,1.71626498,1583.9,1583.8,7.27731]
[1744904034210,0.00746498,1583.9,1583.8,7.27731]
[1744904036421,1.26255,1584.4,1584.1,3.15673]
[1744904036616,1.7292,1584.3,1584.2,1.26269]
[1744904037419,1.73740257,1584.3,1584.2,1.26269]
[1744904037821,1.73740257,1584.3,1584.2,6.13609]
[1744904039129,0.00820257,1584.3,1584.2,6.13609]
[1744904039425,0.00820257,1584.3,1584.2,46.93609]
[1744904039624,0.00564123,1584.4,1584.3,1.26261]
[1744904039818,0.00564123,1584.4,1584.3,7.72611]
[1744904040326,0.00564123,1584.4,1584.3,48.52611]
[1744904040526,1.23e-06,1584.4,1584.3,48.52611]
[1744904040834,0.00520928,1584.4,1584.3,53.52611]
[1744904041329,9.28e-06,1584.4,1584.3,53.52611]
[1744904041733,9.28e-06,1584.4,1584.3,59.38211]
[1744904041930,9.28e-06,1584.4,1584.3,59.86511671]
[1744904042627,2.1035,1585.0,1584.9,1.26213]
[1744904042832,3.7337,1585.0,1584.9,1.26213]
[1744904043333,4.99575,1585.0,1584.8,9.26395]
[1744904043527,1.6302,1584.9,1584.8,4.47726237]
[1744904043734,2.89233,1584.9,1584.8,3.21511237]
[1744904044437,6.6302,1584.9,1584.5,4.47019]
[1744904044731,1.26235,1584.7,1584.6,1.26237]
[1744904044928,5.0,1584.7,1584.3,45.593]
[1744904045135,3.15614,1584.5,1584.1,0.00947598]
[1744904045337,4.9674,1584.4,1584.1,0.00947598]
[1744904045630,1.7596,1584.3,1584.2,9.62366413]
[1744904046932,1.7596,1584.3,1584.2,11.26676413]
[1744904047229,1.7596,1584.3,1584.2,14.47456413]
[1744904047533,2.1468,1584.6,1584.5,1.26245]
[1744904049138,3.7915,1584.6,1584.5,1.26245]
[1744904050729,3.7915,1584.6,1584.4,3.2078]
[1744904050931,1.26261,1584.3,1584.2,5.856]
[1744904051335,1.6155,1584.4,1584.3,1.26261]
[1744904051542,1.6155,1584.4,1584.3,4.47041]
[1744904051734,1.6155,1584.4,1584.3,6.12431]
[1744904051933,2.87803,1584.4,1584.3,2.91651]
[1744904052138,1.26261,1584.3,1584.2,7.11864]
[1744904052335,2.87811,1584.3,1584.2,1.26264]
[1744904052535,1.6155,1584.3,1584.1,0.01570902]
[1744904052841,4.96989,1584.2,1584.1,1.27842902]
[1744904053244,9.96989,1584.2,1584.1,0.01570902]
[1744904053644,1.26293,1583.9,1583.8,8.36097413]
[1744904053843,1.26293,1583.9,1583.8,50.42398413]
[1744904054145,4.47069,1584.0,1583.9,1.26293]
[1744904054442,1.6364,1584.0,1583.8,50.42394413]
[1744904054646,1.2629,1584.0,1583.8,8.36837801]
[1744904054847,1.26293,1583.9,1583.8,8.36837801]
[1744904055143,0.00947598,1584.1,1583.9,1.2629]
[1744904055144,1.2629,1584.0,1583.9,1.2629]
[1744904055643,0.00947598,1584.1,1584.0,1.26285]
[1744904056550,0.00947598,1584.1,1584.0,3.02985]